Cogmind - Beta 11.1 @@@ ROGUE MODE // 2022.05.13 @ 23:51:08 Player: Olga Result: Self-destructed Performance ------------- Evolutions (4) 2000 Regions Visited (5) 1000 Robots Destroyed (0) 0 Value Destroyed (0) 0 Prototype IDs (2) 40 Alien Tech Used (0) 0 Bonus (1325) 1325 TOTAL SCORE: 4365 Bonus ------- Pacifist 1325 Cogmind --------- Core Integrity 606/850 Matter 194/300 Energy 100/100 System Corruption 5% Temperature Cool (0) Movement Core (50) Location -6/Factory Parts ------- > --- POWER (1) -------- (None) > --- PROPULSION (6) --- Faulty Improved Cesium-ion Thruster Faulty Cooled Cesium-ion Thruster > --- UTILITY (6) ------ Advanced Terrain Scan Processor Advanced Terrain Scan Processor Propulsion Shielding System Shield Improved System Shield > --- WEAPON (2) ------- (None) > --- INVENTORY (5) ---- Advanced Terrain Scan Processor Advanced Terrain Scan Processor Mini Grenade Launcher Improved Datajack Chainsword Peak State ------------ > --- POWER ------------ (None) > --- PROPULSION ------- Xenon Bombardment Thruster Improved Cesium-ion Thruster Cooled Cesium-ion Thruster > --- UTILITY ---------- Advanced Terrain Scan Processor Advanced Terrain Scan Processor Propulsion Shielding System Shield Improved System Shield > --- WEAPON ----------- (None) > --- INVENTORY -------- Advanced Terrain Scan Processor Advanced Terrain Scan Processor Mini Grenade Launcher Improved Datajack Chainsword [Rating: 33] Favorites ----------- Power None Propulsion Xenon Bombardment Thruster Flight Unit Xenon Bombardment Thruster Utility Propulsion Shielding Processor Advanced Terrain Scan Processor Hackware System Shield Protection Propulsion Shielding Weapon Chainsword Slashing Weapon Chainsword Build | -11 -10 -9 -8 -7 -6 ------- Run | Scr Mat Mat Mat Fac Fac Slots Evolved 8 | . . 2 2 2 2 Power . | . . . . . . Propulsion 4 | . . 2 . 2 . Utility 4 | . . . 2 . 2 Weapon . | . . . . . . Parts Attached 11 | . 2 1 . 5 3 Power . | . . . . . . Engine . | . . . . . . Core . | . . . . . . Reactor . | . . . . . . Propulsion 5 | . 2 . . 1 2 Treads . | . . . . . . Leg . | . . . . . . Wheel . | . . . . . . Hover . | . . . . . . Flight 5 | . 2 . . 1 2 Utility 5 | . . 1 . 3 1 Device . | . . . . . . Storage . | . . . . . . Processor 2 | . . . . 2 . Hackware 2 | . . . . 1 1 Protection 1 | . . 1 . . . Artifact . | . . . . . . Weapon 1 | . . . . 1 . Energy Gun . | . . . . . . Energy Cannon . | . . . . . . Ballistic Gun . | . . . . . . Ballistic Cannon . | . . . . . . Launcher . | . . . . . . Special Weapon . | . . . . . . Impact Weapon . | . . . . . . Slashing Weapon 1 | . . . . 1 . Piercing Weapon . | . . . . . . Special Melee Weapon . | . . . . . . Unidentified Prototypes 2 | . . . . . 2 Parts Lost 2 | . 1 . . . 1 Power . | . . . . . . Propulsion 2 | . 1 . . . 1 Utility . | . . . . . . Weapon . | . . . . . . Highest Loss Streak 1 | . 1 . . . 1 To Critical Strikes . | . . . . . . Average Slot Usage (%) 20 | . 1 18 18 16 38 Flight 4 | . 1 11 9 2 9 Processor 5 | . . . . 5 13 Hackware 2 | . . . . 1 8 Protection 5 | . . 7 9 7 6 Naked Turns 69 | . 69 . . . . Heaviest Build 1 | . . 1 1 1 1 Greatest Support 8 | 3 8 4 4 6 6 Greatest Overweight (x) . | . . . . . . Average Overweight (x) . | . . . . . . Largest Inventory Capacity 5 | 5 5 5 5 5 5 Average Capacity 5 | 5 5 5 5 5 5 Most Carried 5 | 4 . . 4 5 5 Average Carried 3 | 2 . . 2 4 5 Final Capacity 5 | 5 5 5 5 5 5 Final Carried 5 | . . . 4 5 5 Class Distribution -------------------- 90% | Mutant 9% | Hacker-Mutant Dominant Class ---------------- Mutant | -10/Materials Mutant | -9/Materials Mutant | -8/Materials Mutant | -7/Factory Mutant | -6/Factory Resources | -11 -10 -9 -8 -7 -6 ----------- Run | Scr Mat Mat Mat Fac Fac Matter Collected 200 | 200 . . . . . Remotely . | . . . . . . Salvage Created . | . . . . . . Parts . | . . . . . . Haulers Intercepted . | . . . . . . Recyclers Shooed . | . . . . . . Parts Field Recycled . | . . . . . . Retrieved Matter . | . . . . . . Parts Self-Destructed . | . . . . . . Prevented . | . . . . . . Kills | -11 -10 -9 -8 -7 -6 ------- Run | Scr Mat Mat Mat Fac Fac Combat Hostiles Destroyed . | . . . . . . Classes Destroyed . | . . . . . . Best Kill Streak . | . . . . . . Combat Bots Only . | . . . . . . Max Kills in Single Turn . | . . . . . . Gunslinging . | . . . . . . Exploded . | . . . . . . Melee . | . . . . . . Uniques/NPCs Destroyed . | . . . . . . Combat | -11 -10 -9 -8 -7 -6 -------- Run | Scr Mat Mat Mat Fac Fac Damage Taken 853 | . 222 41 283 . 307 Core 757 | . 197 33 283 . 244 Absorbed by Shields . | . . . . . . Redirected to Shielding 21 | . . 2 . . 19 Core Remaining (%) 72 | 100 21 91 48 100 . Volleys Fired . | . . . . . . Largest . | . . . . . . Hottest . | . . . . . . Shots Fired . | . . . . . . Gun . | . . . . . . Cannon . | . . . . . . Launcher . | . . . . . . Special . | . . . . . . Kinetic . | . . . . . . Thermal . | . . . . . . Explosive . | . . . . . . Electromagnetic . | . . . . . . Robot Hit Streak . | . . . . . . Robot Miss Streak . | . . . . . . Penetration Max . | . . . . . . Secondary Targets . | . . . . . . Shots Hit Robots . | . . . . . . Core Hits . | . . . . . . Critical Kills . | . . . . . . Critical Parts Destroyed . | . . . . . . Critical Strikes . | . . . . . . Melee Attacks . | . . . . . . Impact . | . . . . . . Slashing . | . . . . . . Piercing . | . . . . . . Sneak Attacks . | . . . . . . Combat Hostiles . | . . . . . . Follow-up Attacks . | . . . . . . Damage Inflicted 25 | . 22 . 3 . . Guns . | . . . . . . Cannons . | . . . . . . Explosions . | . . . . . . Melee . | . . . . . . Ramming 25 | . 22 . 3 . . Kinetic . | . . . . . . Thermal . | . . . . . . Explosive . | . . . . . . Electromagnetic . | . . . . . . Impact . | . . . . . . Slashing . | . . . . . . Piercing . | . . . . . . Highest Corruption 5 | . . . . . 5 Average Corruption 3 | . . . . . 3 Corruption Purged . | . . . . . . Corruption Blocked . | . . . . . . Effects 1 | . . . . . 1 Matter Fused 1 | . . . . . 1 Overload Shots . | . . . . . . Overflow Damage . | . . . . . . Projectiles . | . . . . . . Explosions . | . . . . . . Melee . | . . . . . . Knockbacks . | . . . . . . Impact . | . . . . . . Kinetic . | . . . . . . Secondary . | . . . . . . Self-Inflicted Damage 11 | . 10 . 1 . . Shots . | . . . . . . Rammed 4 | . 3 . 1 . . Targets Rammed 4 | . 3 . 1 . . Kicked . | . . . . . . Crushed . | . . . . . . Highest Temperature . | . . . . . . Average Temperature . | . . . . . . Received Heat Transfer 18 | . . . 18 . . Siege Activations . | . . . . . . Robots Corrupted . | . . . . . . Combat Hostiles . | . . . . . . Parts Fried . | . . . . . . Impact Corruptions . | . . . . . . Robots Melted . | . . . . . . Combat Hostiles . | . . . . . . Parts Melted . | . . . . . . Heat Transferred . | . . . . . . Parts Sabotaged . | . . . . . . Parts Stolen . | . . . . . . Parts Stripped . | . . . . . . Power Chain Reactions . | . . . . . . Missiles Intercepted . | . . . . . . Alert | -11 -10 -9 -8 -7 -6 ------- Run | Scr Mat Mat Mat Fac Fac Peak Influence 137 | . 65 81 78 65 137 Initial 35 | . . 27 33 35 12 Average 52 | . 12 56 51 49 82 Maximum Alert Level . | . . . . . . Low Security (%) 100 | 100 100 100 100 100 100 Level 1 . | . . . . . . Level 2 . | . . . . . . Level 3 . | . . . . . . Level 4 . | . . . . . . Level 5 . | . . . . . . High Security . | . . . . . . Max Security . | . . . . . . Squads Dispatched 4 | . . . 2 1 1 Investigation . | . . . . . . Extermination 1 | . . . . 1 . Reinforcement 3 | . . . 2 . 1 Assault . | . . . . . . Garrison . | . . . . . . Intercept . | . . . . . . Searches Triggered . | . . . . . . Construction Impeded . | . . . . . . Haulers Reinforced . | . . . . . . Active Scanning Responses . | . . . . . . Cargo Convoy Interrupts . | . . . . . . Stealth | -11 -10 -9 -8 -7 -6 --------- Run | Scr Mat Mat Mat Fac Fac Distress Signals 2 | . 1 . 1 . . Communications Jammed . | . . . . . . Distress Signals . | . . . . . . Times Spotted 37 | . 13 8 8 1 7 Peak Tracking Total 8 | . 8 8 8 1 5 Tactical Retreats 4 | . 1 . . . 3 Traps | -11 -10 -9 -8 -7 -6 ------- Run | Scr Mat Mat Mat Fac Fac Traps Triggered 3 | . . . 1 1 1 Indirectly . | . . . . . . Trap Hack Attempts . | . . . . . . Triggered . | . . . . . . Disarmed . | . . . . . . Reprogrammed . | . . . . . . Reused . | . . . . . . Traps Extracted . | . . . . . . Installed . | . . . . . . Triggered . | . . . . . . Machines | -11 -10 -9 -8 -7 -6 ---------- Run | Scr Mat Mat Mat Fac Fac Machines Disabled . | . . . . . . Max in Single Turn . | . . . . . . Machines Sabotaged . | . . . . . . Garrisons Compromised . | . . . . . . Overloaded Fab Kills . | . . . . . . Hacking | -11 -10 -9 -8 -7 -6 --------- Run | Scr Mat Mat Mat Fac Fac Machines Accessed 8 | . 1 1 . 3 3 Terminals 8 | . 1 1 . 3 3 Fabricators . | . . . . . . Repair Stations . | . . . . . . Recycling Units . | . . . . . . Scanalyzers . | . . . . . . Garrison Access . | . . . . . . Total Hacks 21 | . 4 2 . 6 9 Successful 10 | . 1 2 . 5 2 Failed 11 | . 3 . . 1 7 Catastrophic 4 | . 2 . . 1 1 Database Lockouts . | . . . . . . Manual 19 | . 4 2 . 5 8 Terminals 21 | . 4 2 . 6 9 Fabricators . | . . . . . . Repair Stations . | . . . . . . Recycling Units . | . . . . . . Scanalyzers . | . . . . . . Garrison Access . | . . . . . . Terminal Hacks 5 | . . 1 . 3 1 Level Access Points 2 | . . 1 . 1 . Branch Access Points 2 | . . . . 1 1 Unreport Threat 1 | . . . . 1 . Fabricator Hacks . | . . . . . . Repair Station Hacks . | . . . . . . Recycling Unit Hacks . | . . . . . . Scanalyzer . | . . . . . . Garrison Access Hacks . | . . . . . . Unauthorized Hacks 5 | . 1 1 . 2 1 Terminals 5 | . 1 1 . 2 1 Botnet 5 | . 1 1 . 2 1 Fabricators . | . . . . . . Repair Stations . | . . . . . . Recycling Units . | . . . . . . Scanalyzers . | . . . . . . Garrison Access . | . . . . . . Data Cores Recovered . | . . . . . . Used . | . . . . . . Hacking Detections 5 | . 1 . . 2 2 Full Trace Events 1 | . 1 . . . . Feedback Events . | . . . . . . Feedback Blocked . | . . . . . . Robot Schematics Acquired . | . . . . . . Robots Built . | . . . . . . Authchips . | . . . . . . Time . | . . . . . . Total Robot Build Rating . | . . . . . . Part Schematics Acquired . | . . . . . . Parts Built . | . . . . . . Authchips . | . . . . . . Time . | . . . . . . Total Part Build Rating . | . . . . . . Parts Repaired . | . . . . . . Time . | . . . . . . Parts Recycled . | . . . . . . Recycled Matter . | . . . . . . Retrieved Matter . | . . . . . . Retrieved Components . | . . . . . . Parts Scanalyzed . | . . . . . . Part Schematics Acquired . | . . . . . . Parts Damaged . | . . . . . . Bothacking | -11 -10 -9 -8 -7 -6 ------------ Run | Scr Mat Mat Mat Fac Fac Used RIF Installer . | . . . . . . Robots Hacked . | . . . . . . Non-combat . | . . . . . . Combat . | . . . . . . Robot Hacks Applied . | . . . . . . Relay Couplers Released . | . . . . . . Fabnet Peak Effective % . | . . . . . . Robots Rewired . | . . . . . . Allies Hacked . | . . . . . . Hacks Repelled . | . . . . . . Allies | -11 -10 -9 -8 -7 -6 -------- Run | Scr Mat Mat Mat Fac Fac Total Allies . | . . . . . . Largest Group . | . . . . . . Highest-Rated Group . | . . . . . . Highest-Rated Ally . | . . . . . . Total Orders . | . . . . . . Ally Attacks . | . . . . . . Total Damage . | . . . . . . Kills . | . . . . . . Allies Corrupted . | . . . . . . Allies Melted . | . . . . . . Intel | -11 -10 -9 -8 -7 -6 ------- Run | Scr Mat Mat Mat Fac Fac Robot Analysis Total . | . . . . . . Derelict Logs Recovered . | . . . . . . Drone Launches . | . . . . . . Drone Recoveries . | . . . . . . Exploration | -11 -10 -9 -8 -7 -6 ------------- Run | Scr Mat Mat Mat Fac Fac Turns Passed 556 | 3 84 30 40 261 138 Spaces Moved 1149 | 1 161 71 86 510 320 Core 501 | 1 131 . 15 307 47 Treads . | . . . . . . Legs . | . . . . . . Wheels . | . . . . . . Hover . | . . . . . . Flight 648 | . 30 71 71 203 273 Fastest Speed 37 | 50 37 40 40 40 40 Average Speed 44 | 50 48 40 41 46 41 Slowest Speed 50 | 50 50 40 50 50 50 Overloaded Moves . | . . . . . . Propulsion Burnouts . | . . . . . . Robots Hopped 8 | . 1 2 1 3 1 Cave-ins Triggered . | . . . . . . Exploration Rate (%) 15 | 2 32 15 12 18 11 Regions Visited 5 Branch Regions . Pre-discovered Areas . | . . . . . . Known Exits Taken 2 | . . 1 . 1 . Unknown Exits Taken 3 | 1 1 . 1 . . Scrap Searched . | . . . . . . Spaces Dug . | . . . . . . Terrain Destroyed . | . . . . . . Melee . | . . . . . . Projectile . | . . . . . . AOE . | . . . . . . Terrain Rammed . | . . . . . . Walls Destroyed . | . . . . . . Machines Disabled . | . . . . . . Actions | -11 -10 -9 -8 -7 -6 --------- Run | Scr Mat Mat Mat Fac Fac Total 1180 | 5 164 69 89 531 322 Wait . | . . . . . . Move 1129 | . 158 66 84 503 318 Hop 8 | . 1 2 1 3 1 Pick Up 6 | . . . 4 2 . Fast Attach 11 | . 2 1 . 5 3 Attach . | . . . . . . Detach 1 | . . . . 1 . Swap . | . . . . . . Drop 7 | 5 . . . 2 . Fire . | . . . . . . Melee . | . . . . . . Ram 3 | . 3 . . . . Kick . | . . . . . . Crush . | . . . . . . Escape Stasis 15 | . . . . 15 . Rewire . | . . . . . . Trap . | . . . . . . Miscellaneous . | . . . . . . Route ------- -11/Scrapyard -10/Materials -9/Materials (discovered 3 exits: *Mat x3) -8/Materials -7/Factory (discovered 7 exits: *Fac x4 / Sto / Low x2) -6/Factory (discovered 2 exits: Low x2) History --------- Turn | Location | Event 1 | -11/Scrapyard | Released all parts (6) 4 | -11/Scrapyard | Discovered new exit (range 0) 4 | -11/Scrapyard | Entered Materials 71 | -10/Materials | Core integrity fell below 50% 86 | -10/Materials | Discovered new exit (range 4) 88 | -10/Materials | Entered another Materials area 88 | -9/Materials | Evolved 2 slots: Propulsion x2 97 | -9/Materials | Identified exit to Materials 118 | -9/Materials | Entered another Materials area 118 | -8/Materials | Evolved 2 slots: Utility x2 153 | -8/Materials | Discovered new exit (range 9) 158 | -8/Materials | Entered Factory 158 | -7/Factory | Evolved 2 slots: Propulsion x2 303 | -7/Factory | Build established: Mutant 380 | -7/Factory | Identified exit to Storage 380 | -7/Factory | Identified exit to Lower Caves 380 | -7/Factory | Identified exit to Factory 419 | -7/Factory | Entered another Factory area 419 | -6/Factory | Evolved 2 slots: Utility x2 456 | -6/Factory | Identified exit to Lower Caves 557 | -6/Factory | Self-destructed Last Messages --------------- 00506_ Penetrated by Slug. 00508_ Acquired Imp. System Shield. 00509_ Slug penetrates Matter Pump. 00509_ Matter Pump disabled. 00510_ Slug penetrates Matter Pump. 00510_ Matter Pump disabled. 00513_ Acquired Prototype Flight Unit. 00513_ Identified Cld. Cesium-ion Thruster. 00513_ Malfunction: Energy drain (-57). 00518_ Slug penetrates Wall. 00523_ Matter Pump disabled. 00533_ Xenon Bombardment Thruster destroyed. 00534_ System corrupted: Matter fused (-9). 00535_ Penetrated by Slug. 00545_ Connecting with Terminal... >>Trojan(Botnet) Trojan loaded successfully. Testing... Terminal linked with 0 systems. Awaiting botnet instructions. Map ----- +----------------------------------------------------+ | ?????????????????????????????# ""? *#???????????? | | ?????????????????????????????# """ #???????????? | | ?????????????????????????????# """ #???????????? | | ?????????????????????????????# #???????????? | | ?????????????????????????????# """ ######+###### | | ?????????????????????????????# """ # | | ?????????????????????######??# """ # | | ?????????????????????? ??# + | | ?????????????????????? " " "?# # | | ?????????????????????# " " "?#+####### """ """ " | | ?????????????????????# " " " # """ """ " | | ?????????????????????# " " " # "%" """ " | | ?????????????????????# " " " + | | ?????????????????????# " " " # | | ?????????????????????# " " " # | | ?????????????????????# " " "?######### ######### | | ?????????????????????? " " "?????????# #??????# | | ?????????????????????? ??????????# +??????# | | ?????????????????????######??????????# #??????# | | ???????????########??????#########???# #??????# | | ???????????# ######## ! ! #???# #??????# | | ???????????# *! # p = ##### #??????# | | ???????????# * # T" hh #??????# | | ???????????# / " #??????# | | ???????????# # #??????# | | ???????????# + @ ##+######??????## | | ???????????# ######## # ????????????? | | ???????????# " #??????######### ????????????? | | ???????????# "" #??????????????# """???????????? | | ???????????# G #??????????????# """???????????? | | ???????????# "" #??????????????# """ ??????????? | | ???????????#! " #??????????????# ??????????? | | ???????????# #??????????????# """ ?????????? | | ???????????########??????????????# ???? ?????????? | | ?????????????????????????????????# ??????????????? | | ?????????????????????????????????# ??????????????? | | ?????????????????????????????????????????????????? | | ?????????????????????????????????????????????????? | | ?????????????????????????????????????????????????? | | | | | | | | | | | | | | | | | | | | | | | +----------------------------------------------------+ Best States ------------- Heat Dissipation 37 Energy Generation 5 Energy Capacity 100 Matter Stores 300 Matter Capacity 300 Sight Range 16 Terrain Scan Density 410 Propulsion Shielding 33 Evasion (%) 62 Defensive Hacking 22 Item Schematics ----------------- None Robot Schematics ------------------ None Fabricated ------------ Nothing Alien Tech Used ----------------- None Achievements -------------- None Challenges ------------ None Game ------ Seed FlyingNeutronPit Manual? 0 Play Time 00:09:58 Cumulative 256.0 hours Start 2022.05.13 @ 23:43:16 End 2022.05.13 @ 23:51:08 Sessions 1 Manual Loads 0 Difficulty Rogue Special Mode None Game No. 381 Rogue 378 Adventurer 0 Explorer 3 Win Type - Total 9 Types 9/0/0/0/0/0/0/0/0 Lore% 71 Gallery% 75 Achievement% 63 Wizard Run 0 Options --------- ASCII 1 Keyboard 1 Movement Vi Keybinds 0 Fullscreen 1 Font 18/SmallcapsGlow Map View 76x50 Tactical HUD 1 Map Filters NONE Filters NONE Steam 1 RUN: 482deb07-655d-48ec-a35f-14d266421668